bitfinex-derivatives/quotes_ETHF0:USTF0_20250214
["timestamp","ask_amount","ask_price","bid_price","bid_amount"]
[1739567385636,3.94291,2719.8,2719.6,0.73513]
[1739567385842,3.58499004,2720.1,2719.5,20.9184]
[1739567385843,3.2078,2720.1,2719.5,20.9184]
[1739567386343,40.8,2720.0,2719.9,0.73506]
[1739567387546,40.8,2720.0,2719.9,3.40106]
[1739567392446,40.8,2720.0,2719.9,2.666]
[1739567392751,40.8,2720.0,2719.9,3.40106]
[1739567392946,41.53503,2720.0,2719.9,2.666]
[1739567393146,40.8,2720.0,2719.9,3.40106]
[1739567395252,40.8,2720.0,2719.9,3.97146]
[1739567396242,0.735,2720.2,2720.0,0.73503]
[1739567396440,3.2078,2720.4,2719.9,3.2364]
[1739567396641,0.73499,2720.2,2720.1,0.735]
[1739567396840,40.8,2720.2,2720.1,0.735]
[1739567398145,41.53498,2720.2,2720.1,0.735]
[1739567398343,41.53501,2720.2,2720.0,0.73503]
[1739567398542,40.8,2720.2,2720.1,0.73501]
[1739567401942,40.8,2720.2,2720.1,3.36201]
[1739567403154,5.42744705,2721.0,2720.6,0.73487]
[1739567403155,3.2078,2720.7,2720.6,0.73487]
[1739567403344,0.00550701,2721.0,2720.6,0.73487]
[1739567403345,3.94807701,2721.0,2720.6,1.83719]
[1739567403539,3.2078,2720.7,2720.6,0.73487]
[1739567403743,40.8,2720.7,2720.6,0.73487]
[1739567404150,3.21330701,2721.0,2720.5,2.631]
[1739567404349,0.00550701,2721.0,2720.9,7.52758004]
[1739567404547,0.73479,2720.9,2720.8,0.5475]
[1739567404854,0.73485,2720.7,2720.6,2.82875874]
[1739567405049,3.94265,2720.7,2720.6,0.18675874]
[1739567405354,0.73501,2720.1,2720.0,2.644]
[1739567405653,41.53501,2720.1,2720.0,2.647]
[1739567405849,40.8,2720.1,2720.0,3.38103]
[1739567406549,40.8,2720.1,2720.0,2.646]
[1739567406745,41.53501,2720.1,2720.0,2.646]
[1739567407949,40.8,2720.1,2720.0,0.73503]
[1739567408551,41.53502,2720.1,2719.9,3.37604]
[1739567408958,0.73503,2720.0,2719.9,3.37605]
[1739567409149,40.8,2720.1,2719.9,3.37605]
[1739567409353,41.53503,2720.1,2719.9,3.37605]
[1739567409549,40.8,2720.1,2719.5,21.2964]
[1739567409751,40.8,2720.1,2719.7,0.7351]
[1739567409752,0.73507,2719.9,2719.7,0.7351]
[1739567410056,0.73506,2720.0,2719.8,0.73508]
[1739567410259,0.73507,2719.9,2719.7,3.3741]
[1739567410455,0.73504,2720.0,2719.7,2.639]
[1739567410851,40.8,2720.1,2719.6,2.637]
[1739567411059,0.73505,2720.0,2719.8,0.73508]
[1739567411554,0.73507,2719.9,2719.6,2.637]
[1739567411857,0.73504,2720.0,2719.9,0.73506]
[1739567412054,41.53502,2720.1,2719.6,2.637]
[1739567412250,41.53502,2720.1,2719.9,0.73504]
[1739567412449,41.53502,2720.1,2720.0,0.73503]
[1739567412951,40.8,2720.1,2720.0,0.73503]
[1739567413260,3.7613,2720.2,2720.1,0.73501]
[1739567413656,44.5613,2720.2,2720.1,0.73501]
[1739567414056,44.0078,2720.2,2720.1,0.73501]
[1739567414559,44.0078,2720.2,2720.1,3.37301]
[1739567414861,0.00550701,2721.0,2720.4,1.83729]
[1739567415050,0.74028701,2721.0,2720.5,5.8468]
[1739567415251,0.00550701,2721.0,2720.5,6.43]
[1739567415554,0.00550701,2721.0,2720.9,0.73479]
[1739567415754,0.00550701,2721.0,2720.9,3.37379]
[1739567415957,0.00550701,2721.0,2720.9,6.58159]
[1739567416350,0.00550701,2721.0,2720.9,3.37679]
[1739567418460,0.00550701,2721.0,2720.9,10.16958004]
[1739567418663,0.00550701,2721.0,2720.9,6.96178004]
[1739567418861,0.00550701,2721.0,2720.9,3.37679]
[1739567419859,0.00550701,2721.0,2720.9,10.16958004]
[1739567421057,0.00550701,2721.0,2720.9,3.2078]
[1739567421258,0.00550701,2721.0,2720.9,2.642]
[1739567421469,0.00550701,2721.0,2720.9,3.37679]
[1739567424359,0.00550701,2721.0,2720.6,0.5681]
[1739567424564,0.00550701,2721.0,2720.7,2.637]
[1739567424764,3.2078,2720.9,2720.4,0.73491]
[1739567424956,3.2078,2720.9,2720.1,0.929]
[1739567425154,1.83726,2720.5,2720.0,2.645]
[1739567425465,0.73501,2720.1,2720.0,2.645]
[1739567425659,0.73499,2720.2,2720.0,3.38003]
[1739567426361,41.3399,2720.4,2720.1,0.73501]
[1739567426362,0.73497,2720.3,2720.1,0.73501]
[1739567426755,0.73498,2720.2,2720.1,0.73501]
[1739567426957,0.73498,2720.3,2720.1,0.73501]
[1739567427163,0.73498,2720.2,2720.0,3.38002]
[1739567427365,41.3399,2720.4,2720.0,2.645]
[1739567427565,0.73499,2720.2,2720.0,3.38002]
[1739567428066,42.07484,2720.4,2720.0,2.645]
[1739567428367,41.53494,2720.4,2720.0,2.645]
[1739567428564,40.8,2720.4,2720.0,2.645]
[1739567428756,40.8,2720.4,2720.2,0.73496]
[1739567428957,40.8,2720.4,2720.0,2.645]
[1739567429168,40.8,2720.4,2720.0,3.38001]
[1739567429364,0.73497,2720.3,2720.1,0.735]
[1739567429967,40.8,2720.4,2720.0,2.645]
[1739567430265,0.73496,2720.3,2720.2,0.73498]
[1739567430465,3.2078,2720.6,2720.2,0.5905]
[1739567430666,3.94268,2720.6,2720.4,0.73492]
[1739567430857,3.94268,2720.6,2720.5,2.636]
[1739567431964,3.94268,2720.6,2720.1,1.31719]
[1739567431965,9.2078,2720.6,2719.5,20.382]
[1739567432165,0.73525,2719.2,2719.1,1.1727]
[1739567432464,3.2078,2719.3,2718.9,3.75532]
[1739567432666,0.73527,2719.2,2718.9,3.75532]
[1739567432874,3.2078,2719.3,2718.8,1.34165884]
[1739567433056,6.79279004,2719.0,2718.2,3.5758]
[1739567433258,3.2078,2718.7,2718.1,3.39154]
[1739567433559,0.73547,2718.4,2718.1,3.024]
[1739567433765,3.2078,2718.4,2717.8,0.368]
[1739567433967,6.79279004,2718.1,2716.9,3.2078]
[1739567434266,3.2078,2717.5,2716.9,0.73587]
[1739567434464,3.2078,2717.5,2716.8,23.03114799]
[1739567434762,0.00551724,2717.8,2717.7,0.73566]
[1739567435064,3.2078,2718.2,2717.7,5.8928]
[1739567435263,3.58499004,2717.8,2716.9,3.2078]
[1739567435467,6.79279004,2717.2,2716.8,17.14834799]
[1739567435668,7.52866004,2716.9,2716.8,17.14834799]
[1739567435862,48.32866004,2716.9,2716.8,17.14834799]
[1739567436169,47.59279004,2716.9,2716.8,8.74536231]
[1739567436574,44.0078,2716.9,2716.6,0.00551724]
[1739567437162,0.00551724,2717.1,2716.7,2.705]
[1739567437374,0.00551724,2717.1,2716.6,0.00551724]
[1739567437665,0.00551724,2717.1,2716.8,0.73588]
[1739567437864,0.00551724,2717.1,2716.8,3.2078]
[1739567438170,0.00551724,2717.1,2716.9,0.73585]
[1739567438370,0.00551724,2717.1,2716.7,2.706]
[1739567438571,3.2078,2717.0,2716.6,0.00551724]
[1739567439367,0.7359,2716.9,2716.6,0.00551724]
[1739567439574,7.52872004,2716.7,2716.6,0.00551724]
[1739567439871,3.94373,2716.7,2716.6,0.00551724]
[1739567440073,3.2078,2716.7,2716.6,0.00551724]
[1739567440267,44.74373,2716.7,2716.6,0.00551724]
[1739567440770,44.0078,2716.7,2716.6,0.00551724]
[1739567440966,44.0078,2716.7,2716.6,0.74146724]
[1739567441169,3.2078,2716.7,2716.6,0.00551724]
[1739567441474,3.94373,2716.7,2716.6,0.00551724]
[1739567441672,44.0078,2716.7,2716.6,0.00551724]
[1739567442068,44.74373,2716.7,2716.6,0.00551724]
[1739567442270,3.2078,2716.7,2716.6,0.00551724]
[1739567443267,3.2078,2717.0,2716.6,0.00551724]
[1739567443471,0.00551724,2717.1,2717.0,0.73585]
[1739567443775,0.00551724,2717.1,2717.0,3.94365]
[1739567444668,0.00551724,2717.1,2717.0,9.94365]
[1739567444877,3.94339,2718.0,2717.5,0.7357]
[1739567445174,3.2078,2718.0,2717.6,2.712]
[1739567445869,44.7433,2718.3,2717.8,0.73563]
[1739567446069,0.00551724,2718.1,2718.0,0.73557]
[1739567446272,0.00551724,2718.1,2718.0,2.709]
[1739567446868,0.00551724,2718.1,2717.3,3.93396693]
[1739567446869,0.00551724,2718.1,2717.9,2.712]
[1739567447062,3.2078,2718.0,2716.8,3.2078]
[1739567447265,3.2078,2717.4,2716.6,0.00551724]
[1739567447470,3.2078,2717.5,2716.8,0.73589]
[1739567447669,0.7358,2717.2,2716.6,0.00551724]
[1739567447875,3.2078,2717.5,2716.6,0.00551724]
[1739567448067,3.2078,2717.5,2716.9,0.73587]
[1739567448268,0.73575,2717.4,2716.9,3.51486]
[1739567448468,3.2078,2717.5,2716.9,2.779]
[1739567448678,0.73574,2717.4,2717.0,0.73583]
[1739567448874,3.2078,2717.5,2716.9,2.779]
[1739567449478,40.8,2717.3,2717.0,0.73583]
[1739567449681,40.8,2717.3,2717.2,0.73579]
[1739567450271,40.8,2717.3,2716.8,2.774]
[1739567450272,40.8,2717.3,2717.1,0.73582]
[1739567450579,40.8,2717.3,2717.2,0.73579]
[1739567450874,0.00551724,2718.1,2717.2,3.94359]
[1739567451078,0.74107724,2718.1,2717.7,0.73564]
[1739567451280,0.00551724,2718.1,2717.5,3.2078]
[1739567451472,40.8,2718.0,2717.8,0.73561]
[1739567451672,40.8,2718.0,2717.4,3.2078]
[1739567451972,40.8,2718.0,2717.8,0.73562]
[1739567452681,40.8,2718.0,2717.4,3.2078]
[1739567452682,40.8,2718.0,2717.9,0.7356]
[1739567453065,40.8,2718.0,2717.9,3.5026]
[1739567453872,0.00551724,2718.1,2717.9,2.767]
[1739567454074,0.00551724,2718.1,2718.0,0.73557]
[1739567454274,0.00551724,2718.1,2717.7,3.2078]
[1739567454475,40.8,2718.0,2717.8,3.50062]
[1739567454975,40.8,2718.0,2717.9,0.7356]
[1739567455672,40.8,2718.0,2717.8,2.765]
[1739567456181,40.8,2718.0,2717.8,3.50061]
[1739567456480,0.73577,2717.3,2717.0,0.73583]
[1739567456776,3.94357,2717.3,2717.0,0.73583]
[1739567457673,3.94358,2717.3,2717.0,0.73584]
[1739567458074,3.2078,2717.3,2717.1,0.7358]
[1739567458481,0.73579,2717.2,2716.9,0.73586]
[1739567460379,44.0078,2716.7,2716.6,0.00551724]
[1739567460680,44.0078,2716.7,2716.6,0.74146724]
[1739567460877,3.94362,2717.1,2716.8,0.73588]
[1739567461079,0.73593,2716.7,2716.6,2.76751724]
[1739567461277,41.53593,2716.7,2716.6,0.00551724]
[1739567462175,46.8,2716.7,2715.9,2.765]
[1739567462372,46.8,2716.7,2715.8,5.9728]
[1739567462373,3.2078,2716.4,2715.8,5.9728]
[1739567462576,3.2078,2716.4,2715.8,6.3416]
[1739567462776,3.2078,2716.8,2716.1,3.2078]
[1739567462974,3.2078,2716.8,2716.6,0.73594]
[1739567463184,1.83935,2717.4,2716.4,2.768]
[1739567463185,3.2078,2717.1,2716.4,2.768]
[1739567463377,0.73598,2716.5,2716.4,2.77351724]
[1739567463585,3.94378,2716.5,2716.4,0.00551724]
[1739567464379,44.74378,2716.5,2716.4,0.00551724]
[1739567465085,44.0078,2716.5,2716.4,0.74152724]
[1739567465392,1.32343,2716.7,2716.4,0.00551724]
[1739567465679,40.8,2716.6,2716.5,0.73598]
[1739567465885,0.00551724,2717.0,2716.9,0.73587]
[1739567466778,40.8,2717.7,2717.6,0.73568]
[1739567466975,40.8,2717.7,2716.9,9.93396693]
[1739567466976,40.8,2717.7,2717.5,0.7357]
[1739567467179,41.53567,2717.7,2717.4,3.51371]
[1739567467378,40.8,2717.7,2717.5,0.73571]
[1739567467687,40.8,2717.7,2717.6,0.73568]
[1739567468477,40.8,2717.7,2717.4,3.146]
[1739567469085,40.8,2717.7,2717.5,0.7357]
[1739567469288,40.8,2717.7,2717.4,2.778]
[1739567469586,44.0078,2717.7,2717.3,2.779]
[1739567469881,44.0078,2717.7,2717.4,0.73574]
[1739567470086,40.8,2717.7,2717.5,0.73569]
[1739567470583,40.8,2717.7,2717.2,3.2078]
[1739567470584,44.0078,2717.7,2717.2,3.2078]
[1739567470785,44.0078,2717.7,2717.1,3.5178]
[1739567470786,44.0078,2717.7,2717.1,2.782]
[1739567471187,0.73568,2717.6,2717.3,0.73575]
[1739567471486,3.2078,2717.4,2716.7,0.584]
[1739567471692,3.2078,2717.4,2716.8,2.779]
[1739567471991,0.73577,2717.3,2717.0,0.73583]
[1739567472191,0.73579,2717.2,2716.9,0.73586]
[1739567472487,3.2078,2717.4,2716.6,23.6108]
[1739567472685,41.53583,2717.1,2716.8,0.73589]
[1739567472892,40.8,2717.1,2716.9,0.73587]
[1739567473388,40.8,2717.1,2717.0,0.73585]
[1739567475190,44.0078,2717.1,2716.4,0.58931724]
[1739567475487,44.0078,2717.1,2716.5,3.51697]
[1739567475692,44.0078,2717.1,2716.5,2.781]
[1739567475893,3.2078,2716.8,2716.6,0.73593]
[1739567476098,3.2078,2716.8,2716.7,0.73593]
[1739567476288,41.53583,2717.1,2716.5,2.781]
[1739567476494,41.53583,2717.1,2716.9,0.73586]
[1739567476688,41.53582,2717.1,2716.9,0.73586]
[1739567476993,40.8,2717.1,2716.5,4.62093]
[1739567477191,40.8,2717.1,2716.5,2.781]
[1739567477487,0.73598,2716.5,2716.4,0.00551724]
[1739567477690,3.2078,2716.7,2716.5,0.73597]
[1739567477901,3.2078,2716.7,2716.4,0.00551724]
[1739567478082,41.53598,2716.5,2716.4,0.00551724]
[1739567478587,47.53598,2716.5,2716.4,0.00551724]
[1739567478803,1.8402,2716.2,2715.0,1.488]
[1739567478989,3.94403,2715.6,2715.4,0.73626]
[1739567479190,3.2078,2715.6,2715.0,0.5771]
[1739567479385,3.2078,2715.6,2714.3,1.36134389]
[1739567479386,3.2078,2715.1,2714.5,3.2078]
[1739567479686,0.73651,2714.6,2714.3,1.36134389]
[1739567479887,3.2078,2714.9,2714.1,6.0368]
[1739567480091,3.2078,2714.9,2714.4,0.73653]
[1739567480289,3.2078,2714.9,2714.2,0.00551724]
[1739567480489,0.00551724,2715.1,2714.4,3.2078]
[1739567480691,0.00551724,2715.1,2714.7,3.2078]
[1739567480883,0.00551724,2715.1,2715.0,3.94419]
[1739567481082,3.2078,2716.1,2715.0,3.2078]
[1739567481285,3.2078,2716.1,2715.7,3.2078]
[1739567481485,0.73614,2716.0,2715.4,0.73626]
[1739567481682,0.73623,2715.6,2715.1,0.5421]
[1739567481892,3.2078,2715.8,2715.1,2.847]
[1739567482090,3.2078,2715.5,2714.6,0.73648]
[1739567482295,3.2078,2715.5,2714.4,0.5612]
[1739567482296,3.2078,2715.2,2714.0,3.2078]
[1739567482490,3.2078,2715.2,2714.8,0.00551724]
[1739567482491,5.77484693,2715.2,2714.8,0.00551724]
[1739567482794,0.73651,2714.6,2714.0,3.2078]
[1739567482993,3.2078,2714.4,2713.6,0.15690708]
[1739567483198,3.2078,2713.8,2713.6,0.15690708]
[1739567483398,40.8,2713.7,2713.6,0.89365708]
[1739567483592,3.2078,2714.2,2714.1,0.73663]
[1739567483896,3.2078,2714.8,2714.1,2.869]
[1739567484194,3.2078,2714.8,2714.1,2.38572]
[1739567484393,2.869,2715.5,2713.6,4.09087401]
[1739567484394,7.14176693,2714.3,2713.6,0.15690708]
[1739567484592,3.2078,2713.7,2713.6,0.15690708]
[1739567484900,44.0078,2713.7,2713.4,0.00552751]
[1739567485404,3.2078,2713.7,2713.4,0.00552751]
[1739567485897,3.2078,2713.7,2713.4,7.51e-06]
[1739567485898,0.73679,2713.5,2713.4,7.51e-06]
[1739567486098,0.73695,2713.0,2712.3,0.3688]
[1739567486300,3.2078,2713.0,2712.4,3.055]
[1739567486499,3.2078,2713.6,2712.9,3.2078]
[1739567486795,3.2078,2713.6,2713.0,3.057]
[1739567486995,3.21332751,2713.9,2713.0,3.057]
[1739567487196,3.21332751,2713.9,2713.1,3.764]
[1739567487386,3.21332751,2713.9,2713.1,3.2078]
[1739567487594,3.2078,2713.4,2713.0,0.00552751]
[1739567487797,3.2078,2713.1,2713.0,0.00552751]
[1739567488496,3.2078,2713.1,2710.7,1.84384]
[1739567488497,9.2078,2713.1,2712.0,0.00269497]
[1739567488800,3.2078,2712.2,2712.0,0.00269497]
[1739567489697,0.00552751,2712.4,2712.0,0.00269497]
[1739567489901,3.21332751,2712.4,2712.0,0.00269497]
[1739567490099,3.21332751,2712.4,2709.5,20.25471068]
[1739567490100,3.93396693,2711.4,2709.5,20.25471068]
[1739567490398,3.2078,2711.5,2709.5,20.62431068]
[1739567490399,3.2078,2710.2,2709.5,20.62431068]
[1739567490591,3.93396693,2710.9,2709.8,3.2078]
[1739567490795,0.00552751,2710.7,2710.1,3.2078]
[1739567491102,0.00552751,2710.7,2709.9,3.161]
[1739567491103,3.2078,2710.5,2709.9,3.161]
[1739567491396,3.2078,2710.5,2710.0,0.73773]
[1739567491596,3.2078,2710.2,2709.8,3.168]
[1739567491804,3.2078,2710.2,2709.4,3.2078]
[1739567491994,3.2078,2710.2,2709.5,0.73788]
[1739567492196,3.2078,2709.9,2709.4,3.2078]
[1739567492391,3.2078,2709.9,2709.3,0.3696]
[1739567492697,0.00552751,2710.7,2709.3,0.3696]
[1739567492698,3.2078,2710.2,2709.4,3.2078]
[1739567492905,3.2078,2710.5,2710.1,0.73769]
[1739567493098,3.2078,2710.5,2710.2,3.168]
[1739567493303,3.2078,2710.5,2710.3,3.168]
[1739567493503,0.73765,2710.4,2710.1,3.166]
[1739567493700,3.2078,2710.2,2710.1,3.166]
[1739567493908,3.2078,2710.2,2709.3,0.3696]
[1739567494198,3.2078,2710.2,2708.5,0.5843]
[1739567494199,3.2078,2709.4,2708.6,0.9495]
[1739567494408,3.2078,2709.0,2708.7,3.182]
[1739567494612,3.2078,2709.0,2708.7,0.3696]
[1739567494902,3.2078,2709.0,2708.3,3.2078]
[1739567495104,3.2078,2708.6,2708.0,3.5774]
[1739567495409,3.2078,2709.0,2708.3,3.2078]
[1739567495604,3.2078,2709.0,2708.5,0.73813]
[1739567495797,3.2078,2709.0,2708.6,3.191]
[1739567496105,0.00552751,2709.1,2708.7,0.7381]
[1739567496306,3.2078,2709.0,2708.4,3.188]
[1739567496603,3.2078,2708.7,2708.4,3.188]
[1739567496806,0.00552751,2709.1,2708.4,3.188]
[1739567496807,3.21332751,2709.1,2708.4,3.188]
[1739567497004,3.21332751,2709.1,2709.0,0.73802]
[1739567497005,0.00552751,2709.1,2709.0,0.73802]
[1739567497200,3.2078,2709.9,2709.0,3.196]
[1739567497504,3.2078,2709.9,2709.7,0.73783]
[1739567497707,3.2078,2709.9,2709.8,3.196]
[1739567498005,3.2078,2709.9,2709.6,3.194]
[1739567498207,0.73781,2709.8,2709.1,0.73799]
[1739567498504,3.93396693,2710.5,2709.5,0.00553781]
[1739567498505,3.94565,2709.6,2709.5,0.00553781]
[1739567498804,3.2078,2709.6,2709.5,0.00553781]
[1739567499396,3.94565,2709.6,2709.5,0.00553781]
[1739567500099,3.2078,2709.6,2709.5,0.00553781]
[1739567500511,3.94565,2709.6,2709.5,0.00553781]
[1739567500907,3.2078,2709.6,2709.5,0.00553781]
[1739567501611,3.2078,2709.6,2709.5,0.74341781]
[1739567502508,3.21333781,2710.0,2709.7,0.73783]
[1739567502704,3.21333781,2710.0,2709.7,0.73781]
[1739567502903,3.21333781,2710.0,2709.5,3.21333781]
[1739567503312,3.21333781,2710.0,2709.8,0.73779]
[1739567503610,3.21333781,2710.0,2709.9,3.183]
[1739567504109,3.2078,2710.3,2710.2,0.73769]
[1739567504309,3.2078,2710.3,2709.9,3.5526]
[1739567504512,40.8,2710.2,2709.9,3.5526]
[1739567504704,40.8,2710.2,2710.1,0.73772]
[1739567504907,40.8,2710.2,2709.6,0.9539]
[1739567505211,3.2078,2709.7,2709.5,0.74341781]
[1739567505605,0.73776,2710.0,2709.5,0.00553781]
[1739567505606,3.2078,2710.0,2709.5,0.00553781]
[1739567505808,0.00553781,2710.2,2709.6,1.84464]
[1739567506014,0.00553781,2710.2,2709.7,3.192]
[1739567506310,40.8,2710.1,2709.7,3.192]
[1739567506506,40.8,2710.1,2710.0,0.73774]
[1739567506707,40.8,2710.1,2709.7,3.192]
[1739567506912,40.8,2710.1,2709.9,0.73775]
[1739567507115,3.2078,2710.0,2709.5,0.00553781]
[1739567507511,3.94555,2710.0,2709.6,3.93284]
[1739567507708,3.19934025,2710.0,2709.8,0.73778]
[1739567507915,3.19934025,2710.0,2709.6,3.195]
[1739567508116,3.19934025,2710.0,2709.9,0.73777]
[1739567509706,40.8,2710.1,2710.0,0.73775]
[1739567509908,7.81e-06,2710.2,2709.8,6.3988]
[1739567510114,7.81e-06,2710.2,2710.1,0.73772]
[1739567510308,40.80000781,2710.2,2710.1,0.73772]
[1739567511514,40.80000781,2710.2,2709.8,0.5658]
[1739567511813,3.2078,2710.0,2709.9,3.92577]
[1739567512206,3.2078,2710.0,2709.9,0.73777]
[1739567512808,3.2078,2710.0,2709.5,0.00553781]
[1739567513014,3.2078,2709.6,2709.5,0.00553781]
[1739567513221,44.0078,2709.6,2709.5,0.00553781]
[1739567513811,44.74565,2709.6,2709.5,0.00553781]
[1739567514516,44.0078,2709.6,2709.5,0.00553781]
[1739567517212,44.0078,2709.6,2709.5,0.74341781]
[1739567517719,44.0078,2709.6,2709.5,0.00553781]
[1739567517912,44.0078,2709.6,2709.5,0.74341781]
[1739567518411,40.8,2709.6,2709.5,0.74341781]
[1739567519209,3.20780781,2710.2,2709.5,0.00553781]
[1739567519516,3.20780781,2710.2,2710.0,0.73772]
[1739567519718,40.8,2710.1,2709.8,3.151]
[1739567520018,40.8,2710.1,2710.0,0.73775]
[1739567520716,7.81e-06,2710.2,2709.8,3.151]
[1739567520717,7.81e-06,2710.2,2710.1,0.73772]
[1739567521119,7.81e-06,2710.2,2710.1,9.94552]
[1739567521307,7.81e-06,2710.2,2710.1,10.01328062]
[1739567521714,7.81e-06,2710.2,2710.1,0.73772]
[1739567522015,7.81e-06,2710.2,2709.9,21.79843944]
[1739567522216,7.81e-06,2710.2,2710.1,0.73772]
[1739567522417,7.81e-06,2710.2,2709.5,3.21333781]
[1739567522615,40.8,2710.1,2710.0,0.73774]
[1739567523223,40.8,2710.1,2709.6,3.152]
[1739567523422,40.8,2710.1,2710.0,0.73774]
[1739567523618,44.0078,2710.1,2710.0,0.73774]
[1739567524123,0.73774,2710.0,2709.5,3.16253781]
[1739567524319,3.2078,2710.0,2709.5,3.16253781]
[1739567524621,3.2078,2710.0,2709.9,0.73777]
[1739567530830,3.2078,2710.0,2709.6,5.0006]
[1739567530831,3.2078,2710.0,2709.6,3.156]
[1739567531032,3.2078,2709.7,2709.6,0.73785]
[1739567531226,3.2078,2709.7,2709.6,3.84785]
[1739567532229,3.2078,2709.7,2709.6,3.84085]
[1739567533726,3.2078,2709.7,2709.5,0.00553781]
[1739567534236,0.73785,2709.6,2709.5,0.00553781]
[1739567534530,40.8,2709.6,2708.8,1.34443944]
[1739567534727,3.94584,2708.9,2708.8,1.34443944]
[1739567534929,7.14176693,2708.9,2708.1,1.37663847]
[1739567535230,3.2078,2708.2,2707.8,1.0]
[1739567535432,44.0078,2707.9,2707.8,1.0]
[1739567536932,50.74612,2707.9,2707.8,0.6989]
[1739567537330,44.0078,2707.9,2707.8,0.6989]
[1739567537830,3.2078,2707.9,2707.8,1.43724]
[1739567538030,0.00553781,2708.3,2708.2,0.73824]
[1739567538229,7.81e-06,2708.3,2708.2,3.86124]
[1739567538429,7.81e-06,2708.3,2708.2,10.23084]
[1739567538637,7.81e-06,2708.3,2708.2,11.35084]
[1739567538933,3.2078,2709.8,2708.9,1.84512]
[1739567539129,3.2078,2709.8,2709.2,3.2078]
[1739567539627,40.8,2710.4,2709.3,3.125]
[1739567539628,3.9457,2709.5,2709.3,3.125]
[1739567539834,3.2078,2709.8,2709.3,3.125]
[1739567540035,0.00553781,2709.7,2709.3,3.125]
[1739567540331,0.00553781,2709.7,2709.1,0.00553781]
[1739567540638,3.2078,2709.4,2709.2,3.128]
[1739567541335,3.2078,2709.4,2709.1,0.00553781]
[1739567541635,3.2078,2709.4,2709.2,3.123]
[1739567542025,0.00553781,2709.7,2709.2,3.123]
[1739567542227,0.73796,2709.2,2709.1,0.00553781]
[1739567542436,0.73796,2709.2,2709.1,7.81e-06]
[1739567542637,1.84507,2709.0,2708.0,0.5522]
[1739567542830,3.2078,2708.1,2708.0,0.5522]
[1739567543028,3.2078,2708.3,2707.8,0.6989]
[1739567543327,3.2078,2707.9,2707.8,0.6989]
[1739567543533,44.74612,2707.9,2707.8,0.6989]
[1739567543728,44.0078,2707.9,2707.8,0.6989]
[1739567544035,40.8,2707.9,2707.8,0.6989]
[1739567544233,40.8,2707.9,2707.8,1.43724]
[1739567544431,40.8,2707.9,2707.8,0.6989]
[1739567544939,40.8,2707.9,2707.8,1.43724]
[1739567545137,0.00553781,2708.1,2708.0,0.73829]
[1739567545340,3.2078,2708.7,2707.8,7.0637]
[1739567545636,3.2078,2708.4,2707.9,0.73831]
[1739567545832,3.2078,2708.4,2708.0,3.158]
[1739567546243,40.8,2708.6,2708.0,3.158]
[1739567546438,3.2078,2708.7,2708.3,0.73821]
[1739567546734,0.00553781,2708.5,2708.3,0.7382]
[1739567547044,0.00553781,2708.5,2708.4,0.73818]
[1739567547539,3.2078,2709.0,2708.7,0.73807]
[1739567547735,3.2078,2709.0,2708.1,4.2628]
[1739567548037,3.2078,2708.2,2707.8,0.6989]
[1739567548238,3.94612,2707.9,2707.8,0.6989]
[1739567548841,9.94612,2707.9,2707.8,0.6989]
[1739567549039,0.73837,2707.7,2707.6,0.00553781]
[1739567549341,0.73837,2707.7,2706.7,0.01311]
[1739567549342,9.93396693,2707.7,2706.7,0.01311]
[1739567549644,3.2078,2706.9,2706.7,0.01311]
[1739567550239,3.9464,2706.9,2706.7,0.01311]
[1739567550434,3.2078,2706.9,2706.7,0.01311]
[1739567551039,3.2078,2706.9,2706.8,0.73862]
[1739567551238,3.2078,2707.2,2706.7,0.01311]
[1739567551539,0.73858,2707.0,2706.7,0.01311]
[1739567551845,3.9464,2706.9,2706.7,0.01311]
[1739567552043,3.2078,2706.9,2706.7,0.01311]
[1739567552241,0.73862,2706.8,2706.7,0.01311]
[1739567552744,47.53862,2706.8,2706.7,0.01311]
[1739567552949,41.53862,2706.8,2706.7,0.01311]
[1739567553146,40.8,2706.8,2706.7,0.01311]
[1739567553441,41.53862,2706.8,2706.7,0.01311]
[1739567553643,40.8,2706.8,2706.7,0.01311]
[1739567554344,41.53862,2706.8,2706.7,0.01311]
[1739567554950,40.8,2706.8,2706.7,0.01311]
[1739567555442,41.53862,2706.8,2706.7,0.01311]
[1739567555638,40.8,2706.8,2706.7,0.01311]
[1739567556144,3.2078,2706.9,2706.7,0.01311]
[1739567556337,3.2078,2706.9,2706.8,0.73862]
[1739567557150,3.2078,2706.9,2706.7,0.75174]
[1739567557448,3.2078,2707.2,2706.8,0.7386]
[1739567557642,3.2078,2706.9,2706.7,0.01311]
[1739567557847,3.94641,2706.9,2706.7,0.01311]
[1739567558142,0.73862,2706.8,2706.7,0.01311]
[1739567558345,6.73862,2706.8,2706.7,0.01311]
[1739567558746,47.53862,2706.8,2706.7,0.01311]
[1739567559042,41.53862,2706.8,2706.7,0.01311]
[1739567559244,47.53862,2706.8,2706.7,0.01311]
[1739567559436,41.53862,2706.8,2706.7,0.01311]
[1739567560343,40.8,2706.8,2706.7,0.01311]
[1739567560739,40.8,2706.8,2706.7,0.75175]
[1739567560950,40.8,2706.8,2706.7,0.73864]
[1739567561748,40.8,2706.8,2706.7,3.89964]
[1739567562349,3.2078,2707.2,2707.1,0.73854]
[1739567562546,3.2078,2707.7,2706.8,0.5395]
[1739567562845,3.2078,2707.7,2706.8,3.7473]
[1739567563046,3.2078,2707.7,2706.9,1.84648]